[Event "The Kvibergspelen 2024"]
[Site "Kviberg Park Hotel & Conference, Krutvagen 2, Gothenburg, Sweden"]
[Date "2024.09.08"]
[Round "8.11"]
[White "Rajcevski, Dejan"]
[Black "Kingsley, Elias"]
[Result "1-0"]
[TimeControl "15 minutes + 5 seconds per move from move one (Round 1 - 4) / 90 minutes + 30 seconds per move from move one (Round 5 - 8)"]
[WhiteFideId "1759027"]
[BlackFideId "1775006"]
[WhiteElo "2131"]
[BlackElo "2047"]

1. d4 {[%clk 01:30:59]} Nf6 {[%clk 01:30:55]} {[%emt 00:00:05]} 2. Bf4 {[%clk
01:31:25]} {[%emt 00:00:04]} b6 {[%clk 01:31:04]} {[%emt 00:00:23]} 3. Nc3
{[%clk 01:31:28]} {[%emt 00:00:26]} Bb7 {[%clk 01:29:26]} {[%emt 00:02:08]} 4.
f3 {[%clk 01:31:39]} {[%emt 00:00:18]} d5 {[%clk 01:26:16]} {[%emt 00:03:40]} 5.
Qd2 {[%clk 01:29:52]} {[%emt 00:02:18]} e6 {[%clk 01:24:41]} {[%emt 00:02:05]}
6. e3 {[%clk 01:26:26]} {[%emt 00:03:55]} Be7 {[%clk 01:19:43]} {[%emt
00:05:28]} 7. Bd3 {[%clk 01:18:24]} {[%emt 00:08:32]} c5 {[%clk 01:06:57]}
{[%emt 00:13:17]} 8. Nb5 {[%clk 01:13:34]} {[%emt 00:05:20]} Na6 {[%clk
01:06:19]} {[%emt 00:01:08]} 9. c3 {[%clk 01:13:54]} {[%emt 00:00:11]} c4
{[%clk 00:58:23]} {[%emt 00:08:25]} 10. Bc2 {[%clk 01:14:07]} {[%emt 00:00:16]}
Qd7 {[%clk 00:56:00]} {[%emt 00:02:53]} 11. a4 {[%clk 01:14:18]} {[%emt
00:00:21]} Bc6 {[%clk 00:55:01]} {[%emt 00:01:28]} 12. Ne2 {[%clk 01:14:37]}
{[%emt 00:00:11]} Nh5 {[%clk 00:49:36]} {[%emt 00:05:54]} 13. Bg3 {[%clk
01:13:30]} {[%emt 00:01:37]} Nxg3 {[%clk 00:48:40]} {[%emt 00:01:27]} 14. hxg3
{[%clk 01:13:51]} {[%emt 00:00:08]} Bxb5 {[%clk 00:47:51]} {[%emt 00:01:19]} 15.
axb5 {[%clk 01:14:10]} {[%emt 00:00:11]} Nc7 {[%clk 00:48:12]} {[%emt
00:00:09]} 16. Ba4 {[%clk 01:11:14]} {[%emt 00:03:27]} f6 {[%clk 00:36:15]}
{[%emt 00:12:28]} 17. Kf2 {[%clk 01:09:25]} {[%emt 00:02:18]} Kf7 {[%clk
00:35:19]} {[%emt 00:01:26]} 18. g4 {[%clk 01:01:36]} {[%emt 00:08:19]} Nxb5
{[%clk 00:32:10]} {[%emt 00:03:39]} 19. Qc2 {[%clk 00:57:55]} {[%emt 00:04:10]}
g6 {[%clk 00:30:13]} {[%emt 00:02:27]} 20. Nf4 {[%clk 00:57:06]} {[%emt
00:01:19]} a6 {[%clk 00:27:39]} {[%emt 00:03:05]} 21. Rxh7+ {[%clk 00:56:19]}
{[%emt 00:01:16]} Rxh7 {[%clk 00:27:51]} {[%emt 00:00:18]} 22. Qxg6+ {[%clk
00:56:32]} {[%emt 00:00:17]} Kf8 {[%clk 00:28:05]} {[%emt 00:00:17]} 23. Qxh7
{[%clk 00:56:52]} {[%emt 00:00:10]} Ke8 {[%clk 00:27:34]} {[%emt 00:01:00]} 24.
Qg8+ {[%clk 00:56:01]} {[%emt 00:01:21]} Bf8 {[%clk 00:27:41]} {[%emt
00:00:24]} 25. Qxe6+ {[%clk 00:55:05]} {[%emt 00:01:26]} Qxe6 {[%clk 00:28:01]}
{[%emt 00:00:10]} 26. Nxe6 {[%clk 00:53:13]} {[%emt 00:02:22]} Rc8 {[%clk
00:27:23]} {[%emt 00:01:08]} 27. Bxb5+ {[%clk 00:52:56]} {[%emt 00:00:47]} axb5
{[%clk 00:27:24]} {[%emt 00:00:29]} 28. Ra7 {[%clk 00:53:04]} {[%emt 00:00:20]}
b4 {[%clk 00:27:23]} {[%emt 00:00:32]} 29. Nc7+ {[%clk 00:53:14]} {[%emt
00:00:20]} Kd8 {[%clk 00:27:28]} {[%emt 00:00:25]} 30. Nxd5 {[%clk 00:53:13]}
{[%emt 00:00:32]} bxc3 {[%clk 00:27:39]} {[%emt 00:00:19]} 31. bxc3 {[%clk
00:53:32]} {[%emt 00:00:11]} b5 {[%clk 00:27:58]} {[%emt 00:00:11]} 32. Rb7
{[%clk 00:53:12]} {[%emt 00:00:50]} b4 {[%clk 00:28:02]} {[%emt 00:00:25]} 33.
Nxb4 {[%clk 00:53:25]} {[%emt 00:00:17]} Bxb4 {[%clk 00:28:25]} {[%emt
00:00:07]} 34. Rxb4 {[%clk 00:53:47]} {[%emt 00:00:08]} Kd7 {[%clk 00:28:49]}
{[%emt 00:00:07]} 35. e4 {[%clk 00:53:58]} {[%emt 00:00:19]} Ke6 {[%clk
00:29:08]} {[%emt 00:00:11]} 36. Ke3 {[%clk 00:54:14]} {[%emt 00:00:13]} Kf7
{[%clk 00:29:28]} {[%emt 00:00:10]} 37. Rb5 {[%clk 00:54:29]} {[%emt 00:00:15]}
Kg6 {[%clk 00:29:47]} {[%emt 00:00:12]} 38. Rc5 {[%clk 00:54:50]} {[%emt
00:00:08]} 1-0

[Event "The Kvibergspelen 2024"]
[Site "Kviberg Park Hotel & Conference, Krutvagen 2, Gothenburg, Sweden"]
[Date "2024.09.08"]
[Round "8.12"]
[White "Ask, Josef"]
[Black "Kallen, Jonas"]
[Result "0-1"]
[TimeControl "15 minutes + 5 seconds per move from move one (Round 1 - 4) / 90 minutes + 30 seconds per move from move one (Round 5 - 8)"]
[WhiteTitle "FM"]
[WhiteFideId "1704583"]
[BlackFideId "1712896"]
[WhiteElo "2106"]
[BlackElo "2026"]

1. b3 {[%clk 01:30:53]} {[%emt 00:00:06]} Nf6 {[%clk 01:30:34]} {[%emt
00:00:26]} 2. Bb2 {[%clk 01:30:55]} {[%emt 00:00:29]} d5 {[%clk 01:30:45]}
{[%emt 00:00:18]} 3. e3 {[%clk 01:30:29]} {[%emt 00:00:57]} Bf5 {[%clk
01:30:08]} {[%emt 00:01:05]} 4. f4 {[%clk 01:29:47]} {[%emt 00:01:14]} e6
{[%clk 01:28:20]} {[%emt 00:02:17]} 5. Nf3 {[%clk 01:29:41]} {[%emt 00:00:37]}
h6 {[%clk 01:28:24]} {[%emt 00:00:25]} 6. a3 {[%clk 01:27:26]} {[%emt
00:02:46]} Nbd7 {[%clk 01:25:50]} {[%emt 00:03:03]} 7. Be2 {[%clk 01:26:19]}
{[%emt 00:01:37]} Bd6 {[%clk 01:22:08]} {[%emt 00:04:12]} 8. O-O {[%clk
01:24:51]} {[%emt 00:01:59]} O-O {[%clk 01:21:54]} {[%emt 00:00:44]} 9. Ne5
{[%clk 01:21:12]} {[%emt 00:04:09]} c6 {[%clk 01:21:27]} {[%emt 00:00:57]} 10.
Bf3 {[%clk 01:15:06]} {[%emt 00:06:36]} Qc7 {[%clk 01:20:37]} {[%emt 00:01:20]}
11. d4 {[%clk 01:14:27]} {[%emt 00:01:09]} Ne4 {[%clk 01:16:35]} {[%emt
00:04:32]} 12. c4 {[%clk 01:11:15]} {[%emt 00:03:41]} f6 {[%clk 01:05:27]}
{[%emt 00:11:38]} 13. Ng4 {[%clk 01:07:33]} {[%emt 00:04:13]} Bxg4 {[%clk
01:04:55]} {[%emt 00:01:02]} 14. Bxg4 {[%clk 01:04:18]} {[%emt 00:03:45]} f5
{[%clk 01:05:18]} {[%emt 00:00:07]} 15. Bf3 {[%clk 01:02:33]} {[%emt 00:02:15]}
Ndf6 {[%clk 01:05:26]} {[%emt 00:00:21]} 16. Nc3 {[%clk 01:01:07]} {[%emt
00:01:57]} Nxc3 {[%clk 01:05:46]} {[%emt 00:00:09]} 17. Bxc3 {[%clk 01:01:32]}
{[%emt 00:00:06]} Qe7 {[%clk 01:01:30]} {[%emt 00:04:46]} 18. c5 {[%clk
01:00:41]} {[%emt 00:01:21]} Bc7 {[%clk 01:01:55]} {[%emt 00:00:04]} 19. Rb1
{[%clk 00:57:11]} {[%emt 00:04:00]} Kh7 {[%clk 00:56:23]} {[%emt 00:06:02]} 20.
b4 {[%clk 00:53:10]} {[%emt 00:04:32]} a6 {[%clk 00:56:04]} {[%emt 00:00:49]}
21. a4 {[%clk 00:52:29]} {[%emt 00:01:11]} Ne4 {[%clk 00:54:03]} {[%emt
00:02:31]} 22. Bxe4 {[%clk 00:51:31]} {[%emt 00:01:28]} fxe4 {[%clk 00:53:38]}
{[%emt 00:00:55]} 23. Qg4 {[%clk 00:49:43]} {[%emt 00:02:17]} Rf5 {[%clk
00:51:25]} {[%emt 00:02:43]} 24. b5 {[%clk 00:49:05]} {[%emt 00:01:09]} axb5
{[%clk 00:49:20]} {[%emt 00:02:35]} 25. axb5 {[%clk 00:49:29]} {[%emt
00:00:06]} g5 {[%clk 00:47:48]} {[%emt 00:02:01]} 26. bxc6 {[%clk 00:42:26]}
{[%emt 00:07:34]} bxc6 {[%clk 00:45:00]} {[%emt 00:03:18]} 27. Rb7 {[%clk
00:40:20]} {[%emt 00:02:35]} gxf4 {[%clk 00:40:55]} {[%emt 00:04:35]} 28. Rxf4
{[%clk 00:37:42]} {[%emt 00:03:10]} Rg5 {[%clk 00:37:21]} {[%emt 00:04:02]} 29.
Qd1 {[%clk 00:27:03]} {[%emt 00:11:09]} Rg7 {[%clk 00:35:41]} {[%emt 00:02:10]}
30. g3 {[%clk 00:08:03]} {[%emt 00:19:31]} Qg5 {[%clk 00:31:36]} {[%emt
00:04:34]} 31. Rxc7 {[%clk 00:06:19]} {[%emt 00:02:15]} Rxc7 {[%clk 00:31:31]}
{[%emt 00:00:35]} 32. Qb1 {[%clk 00:06:05]} {[%emt 00:00:44]} Qg8 {[%clk
00:28:26]} {[%emt 00:03:32]} 33. Qb6 {[%clk 00:05:09]} {[%emt 00:01:29]} Qb8
{[%clk 00:24:27]} {[%emt 00:04:29]} 34. Qxb8 {[%clk 00:03:13]} {[%emt
00:02:27]} Rxb8 {[%clk 00:24:47]} {[%emt 00:00:09]} 35. Rf6 {[%clk 00:03:07]}
{[%emt 00:00:36]} Re7 {[%clk 00:24:43]} {[%emt 00:00:33]} 36. Ba5 {[%clk
00:02:40]} {[%emt 00:00:57]} Kg7 {[%clk 00:24:55]} {[%emt 00:00:18]} 37. Rf2
{[%clk 00:02:38]} {[%emt 00:00:33]} Rb3 {[%clk 00:24:22]} {[%emt 00:01:01]} 38.
Re2 {[%clk 00:02:28]} {[%emt 00:00:42]} Ra7 {[%clk 00:24:03]} {[%emt 00:00:47]}
39. Bb6 {[%clk 00:02:09]} {[%emt 00:00:51]} Ra1+ {[%clk 00:24:03]} {[%emt
00:00:29]} 40. Kf2 {[%clk 00:02:22]} {[%emt 00:00:17]} Rab1 {[%clk 00:24:18]}
{[%emt 00:00:15]} 41. Bc7 {[%clk 00:02:32]} {[%emt 00:00:21]} R3b2 {[%clk
00:24:20]} {[%emt 00:00:28]} 42. g4 {[%clk 00:02:12]} {[%emt 00:00:49]} Rxe2+
{[%clk 00:24:36]} {[%emt 00:00:14]} 43. Kxe2 {[%clk 00:02:39]} {[%emt
00:00:03]} Rg1 {[%clk 00:24:25]} {[%emt 00:00:40]} 44. h3 {[%clk 00:01:52]}
{[%emt 00:01:19]} Rh1 {[%clk 00:24:37]} {[%emt 00:00:16]} 45. Kf2 {[%clk
00:01:40]} {[%emt 00:00:43]} Rxh3 {[%clk 00:24:29]} {[%emt 00:00:39]} 46. Bg3
{[%clk 00:01:11]} {[%emt 00:00:59]} h5 {[%clk 00:24:23]} {[%emt 00:00:36]} 47.
gxh5 {[%clk 00:01:11]} {[%emt 00:00:30]} Rxh5 {[%clk 00:24:41]} {[%emt
00:00:10]} 48. Bc7 {[%clk 00:00:50]} {[%emt 00:00:53]} Kg6 {[%clk 00:24:32]}
{[%emt 00:00:38]} 49. Ke2 {[%clk 00:00:47]} {[%emt 00:00:34]} Kf5 {[%clk
00:23:54]} {[%emt 00:01:06]} 50. Kd2 {[%clk 00:00:56]} {[%emt 00:00:23]} Kg4
{[%clk 00:23:48]} {[%emt 00:00:35]} 51. Kc3 {[%clk 00:00:58]} {[%emt 00:00:29]}
Rh3 {[%clk 00:24:04]} {[%emt 00:00:13]} 52. Bf4 {[%clk 00:01:05]} {[%emt
00:00:23]} Rf3 {[%clk 00:24:24]} {[%emt 00:00:09]} 53. Bh6 {[%clk 00:00:41]}
{[%emt 00:00:56]} Kh5 {[%clk 00:24:48]} {[%emt 00:00:05]} 54. Bg7 {[%clk
00:00:52]} {[%emt 00:00:19]} Rxe3+ {[%clk 00:25:03]} {[%emt 00:00:14]} 55. Kb4
{[%clk 00:01:21]} {[%emt 00:00:03]} Rd3 {[%clk 00:24:57]} {[%emt 00:00:35]} 56.
Be5 {[%clk 00:01:17]} {[%emt 00:00:34]} e3 {[%clk 00:25:00]} {[%emt 00:00:27]}
57. Bg3 {[%clk 00:01:22]} {[%emt 00:00:26]} e2 {[%clk 00:25:16]} {[%emt
00:00:14]} 58. Bf2 {[%clk 00:00:53]} {[%emt 00:00:59]} Rf3 {[%clk 00:25:09]}
{[%emt 00:00:36]} 59. Be1 {[%clk 00:00:38]} {[%emt 00:00:45]} Rf1 {[%clk
00:25:33]} {[%emt 00:00:05]} 0-1

[Event "The Kvibergspelen 2024"]
[Site "Kviberg Park Hotel & Conference, Krutvagen 2, Gothenburg, Sweden"]
[Date "2024.09.08"]
[Round "8.13"]
[White "Mashhadi, Peyman"]
[Black "Kashwan, Hassan"]
[Result "1-0"]
[TimeControl "15 minutes + 5 seconds per move from move one (Round 1 - 4) / 90 minutes + 30 seconds per move from move one (Round 5 - 8)"]
[WhiteFideId "1768581"]
[BlackFideId "137122555"]
[WhiteElo "2148"]
[BlackElo "1936"]

1. e4 {[%clk 01:30:36]} {[%emt 00:00:22]} c5 {[%clk 01:20:06]} {[%emt
00:10:56]} 2. Nf3 {[%clk 01:31:02]} {[%emt 00:00:04]} d6 {[%clk 01:20:33]}
{[%emt 00:00:03]} 3. d4 {[%clk 01:31:27]} {[%emt 00:00:05]} cxd4 {[%clk
01:21:00]} {[%emt 00:00:03]} 4. Nxd4 {[%clk 01:31:48]} {[%emt 00:00:09]} Nf6
{[%clk 01:21:24]} {[%emt 00:00:06]} 5. Nc3 {[%clk 01:32:13]} {[%emt 00:00:04]}
a6 {[%clk 01:21:53]} {[%emt 00:00:02]} 6. Bc4 {[%clk 01:32:27]} {[%emt
00:00:15]} b5 {[%clk 01:20:14]} {[%emt 00:02:10]} 7. Bb3 {[%clk 01:32:52]}
{[%emt 00:00:04]} Bb7 {[%clk 01:20:27]} {[%emt 00:00:17]} 8. O-O {[%clk
01:32:16]} {[%emt 00:01:07]} Nbd7 {[%clk 01:19:48]} {[%emt 00:01:08]} 9. a4
{[%clk 01:30:03]} {[%emt 00:02:44]} b4 {[%clk 01:20:00]} {[%emt 00:00:18]} 10.
Nd5 {[%clk 01:30:22]} {[%emt 00:00:10]} e6 {[%clk 01:19:15]} {[%emt 00:01:14]}
11. Nxb4 {[%clk 01:30:05]} {[%emt 00:00:48]} Qb6 {[%clk 01:14:52]} {[%emt
00:04:53]} 12. c3 {[%clk 01:29:28]} {[%emt 00:01:08]} Nc5 {[%clk 01:11:38]}
{[%emt 00:03:42]} 13. a5 {[%clk 01:29:38]} {[%emt 00:00:22]} Qc7 {[%clk
01:11:29]} {[%emt 00:00:39]} 14. Bc2 {[%clk 01:29:23]} {[%emt 00:00:44]} Be7
{[%clk 01:08:32]} {[%emt 00:03:28]} 15. f3 {[%clk 01:28:51]} {[%emt 00:01:01]}
O-O {[%clk 01:00:12]} {[%emt 00:08:50]} 16. Nd3 {[%clk 01:29:17]} {[%emt
00:00:04]} Rfd8 {[%clk 01:00:05]} {[%emt 00:00:38]} 17. Bg5 {[%clk 01:28:00]}
{[%emt 00:01:47]} Rac8 {[%clk 00:59:41]} {[%emt 00:00:54]} 18. Kh1 {[%clk
01:24:25]} {[%emt 00:04:04]} h6 {[%clk 00:57:53]} {[%emt 00:02:18]} 19. Bh4
{[%clk 01:24:34]} {[%emt 00:00:21]} Ncd7 {[%clk 00:57:18]} {[%emt 00:01:05]} 20.
Qe2 {[%clk 01:18:52]} {[%emt 00:06:12]} Ne5 {[%clk 00:55:21]} {[%emt 00:02:27]}
21. Bf2 {[%clk 01:18:44]} {[%emt 00:00:38]} Nc4 {[%clk 00:53:44]} {[%emt
00:02:05]} 22. Nb3 {[%clk 01:17:01]} {[%emt 00:02:16]} d5 {[%clk 00:50:49]}
{[%emt 00:03:25]} 23. e5 {[%clk 01:16:29]} {[%emt 00:01:02]} Nd7 {[%clk
00:50:43]} {[%emt 00:00:35]} 24. f4 {[%clk 01:16:27]} {[%emt 00:00:32]} Nxb2
{[%clk 00:48:49]} {[%emt 00:02:24]} 25. Nxb2 {[%clk 01:16:03]} {[%emt
00:00:54]} Qxc3 {[%clk 00:40:39]} {[%emt 00:08:40]} 26. Rfc1 {[%clk 01:16:24]}
{[%emt 00:00:10]} Qb4 {[%clk 00:39:17]} {[%emt 00:01:51]} 27. Nd3 {[%clk
01:14:34]} {[%emt 00:02:20]} Qe4 {[%clk 00:35:22]} {[%emt 00:04:25]} 28. Qxe4
{[%clk 01:14:50]} {[%emt 00:00:14]} dxe4 {[%clk 00:35:49]} {[%emt 00:00:03]} 29.
Nb2 {[%clk 01:14:37]} {[%emt 00:00:43]} f5 {[%clk 00:35:41]} {[%emt 00:00:39]}
30. Na4 {[%clk 01:12:54]} {[%emt 00:02:12]} Nf8 {[%clk 00:34:17]} {[%emt
00:01:54]} 31. Nac5 {[%clk 01:11:14]} {[%emt 00:02:11]} Bd5 {[%clk 00:34:36]}
{[%emt 00:00:11]} 32. Rab1 {[%clk 01:09:44]} {[%emt 00:02:00]} g5 {[%clk
00:34:05]} {[%emt 00:01:00]} 33. Nxa6 {[%clk 01:07:50]} {[%emt 00:02:25]} Ba3
{[%clk 00:30:41]} {[%emt 00:03:49]} 34. Bb6 {[%clk 01:07:04]} {[%emt 00:01:20]}
Bxc1 {[%clk 00:30:12]} {[%emt 00:00:59]} 35. Bxd8 {[%clk 01:07:16]} {[%emt
00:00:18]} Bxf4 {[%clk 00:30:08]} {[%emt 00:00:34]} 36. Bc7 {[%clk 01:06:48]}
{[%emt 00:00:58]} Be3 {[%clk 00:29:38]} {[%emt 00:01:00]} 37. Bb6 {[%clk
01:03:39]} {[%emt 00:03:40]} Rxc2 {[%clk 00:26:08]} {[%emt 00:03:59]} 38. Nb4
{[%clk 01:02:12]} {[%emt 00:01:57]} Rc3 {[%clk 00:20:13]} {[%emt 00:06:26]} 39.
Nxd5 {[%clk 01:02:34]} {[%emt 00:00:08]} exd5 {[%clk 00:20:10]} {[%emt
00:00:33]} 40. Bxe3 {[%clk 01:02:48]} {[%emt 00:00:15]} Rxe3 {[%clk 00:20:34]}
{[%emt 00:00:06]} 41. a6 {[%clk 01:02:57]} {[%emt 00:00:21]} Nd7 {[%clk
00:20:26]} {[%emt 00:00:38]} 42. a7 {[%clk 01:02:34]} {[%emt 00:00:53]} Nb6
{[%clk 00:20:28]} {[%emt 00:00:29]} 43. Kg1 {[%clk 01:02:40]} {[%emt 00:00:23]}
Kf7 {[%clk 00:12:11]} {[%emt 00:08:47]} 44. Nd4 {[%clk 01:01:21]} {[%emt
00:01:48]} Ra3 {[%clk 00:10:15]} {[%emt 00:02:26]} 45. Rxb6 {[%clk 01:01:32]}
{[%emt 00:00:20]} Rxa7 {[%clk 00:10:39]} {[%emt 00:00:05]} 46. Nxf5 {[%clk
01:01:23]} {[%emt 00:00:39]} Ra1+ {[%clk 00:10:55]} {[%emt 00:00:15]} 47. Kf2
{[%clk 01:01:49]} {[%emt 00:00:04]} Ra2+ {[%clk 00:10:58]} {[%emt 00:00:26]} 48.
Ke3 {[%clk 01:01:46]} {[%emt 00:00:33]} Ra3+ {[%clk 00:10:11]} {[%emt
00:01:18]} 49. Kd4 {[%clk 01:01:21]} {[%emt 00:00:54]} Rd3+ {[%clk 00:10:17]}
{[%emt 00:00:24]} 50. Kc5 {[%clk 01:01:46]} {[%emt 00:00:05]} e3 {[%clk
00:10:08]} {[%emt 00:00:39]} 51. e6+ {[%clk 01:02:10]} {[%emt 00:00:06]} Kf6
{[%clk 00:08:26]} {[%emt 00:02:13]} 52. e7+ {[%clk 01:02:32]} {[%emt 00:00:07]}
Kf7 {[%clk 00:08:45]} {[%emt 00:00:11]} 53. Rb8 {[%clk 01:02:55]} {[%emt
00:00:07]} 1-0

[Event "The Kvibergspelen 2024"]
[Site "Kviberg Park Hotel & Conference, Krutvagen 2, Gothenburg, Sweden"]
[Date "2024.09.08"]
[Round "8.14"]
[White "Andersson, Robert"]
[Black "Helin, Mikael"]
[Result "0-1"]
[TimeControl "15 minutes + 5 seconds per move from move one (Round 1 - 4) / 90 minutes + 30 seconds per move from move one (Round 5 - 8)"]
[BlackTitle "CM"]
[WhiteFideId "1703226"]
[BlackFideId "1703838"]
[WhiteElo "2098"]
[BlackElo "1921"]

1. e4 {[%clk 01:27:46]} {[%emt 00:03:13]} d6 {[%clk 01:30:37]} {[%emt
00:00:24]} 2. Nf3 {[%clk 01:27:41]} {[%emt 00:00:35]} g6 {[%clk 01:29:39]}
{[%emt 00:01:28]} 3. Nc3 {[%clk 01:27:20]} {[%emt 00:00:51]} Bg7 {[%clk
01:30:02]} {[%emt 00:00:06]} 4. Bc4 {[%clk 01:27:14]} {[%emt 00:00:36]} e6
{[%clk 01:30:12]} {[%emt 00:00:20]} 5. O-O {[%clk 01:27:25]} {[%emt 00:00:20]}
a6 {[%clk 01:30:27]} {[%emt 00:00:15]} 6. d4 {[%clk 01:27:19]} {[%emt
00:00:36]} h6 {[%clk 01:30:50]} {[%emt 00:00:07]} 7. Re1 {[%clk 01:25:54]}
{[%emt 00:01:55]} b6 {[%clk 01:31:09]} {[%emt 00:00:11]} 8. Ne2 {[%clk
01:24:58]} {[%emt 00:01:25]} Bb7 {[%clk 01:31:22]} {[%emt 00:00:18]} 9. Nf4
{[%clk 01:21:43]} {[%emt 00:03:44]} Qd7 {[%clk 01:30:15]} {[%emt 00:01:37]} 10.
c3 {[%clk 01:18:06]} {[%emt 00:04:07]} Ne7 {[%clk 01:29:01]} {[%emt 00:01:44]}
11. b4 {[%clk 01:14:29]} {[%emt 00:04:08]} O-O {[%clk 01:23:23]} {[%emt
00:06:09]} 12. Qb3 {[%clk 01:14:24]} {[%emt 00:00:34]} d5 {[%clk 01:23:09]}
{[%emt 00:00:44]} 13. exd5 {[%clk 01:13:43]} {[%emt 00:01:12]} exd5 {[%clk
01:23:33]} {[%emt 00:00:05]} 14. Bd3 {[%clk 01:12:22]} {[%emt 00:01:50]} Nbc6
{[%clk 01:22:41]} {[%emt 00:01:23]} 15. a4 {[%clk 01:11:23]} {[%emt 00:01:29]}
Rad8 {[%clk 01:19:46]} {[%emt 00:03:24]} 16. Ra2 {[%clk 01:11:29]} {[%emt
00:00:24]} Ba8 {[%clk 01:18:34]} {[%emt 00:01:43]} 17. Bxa6 {[%clk 01:10:23]}
{[%emt 00:01:35]} Nf5 {[%clk 01:16:31]} {[%emt 00:02:33]} 18. Bb5 {[%clk
01:08:49]} {[%emt 00:02:04]} Qd6 {[%clk 01:13:16]} {[%emt 00:03:45]} 19. Nd3
{[%clk 00:57:34]} {[%emt 00:11:46]} g5 {[%clk 01:10:57]} {[%emt 00:02:48]} 20.
Nde5 {[%clk 00:54:54]} {[%emt 00:03:10]} Nce7 {[%clk 01:06:45]} {[%emt
00:04:43]} 21. Bd3 {[%clk 00:53:22]} {[%emt 00:02:01]} Bb7 {[%clk 01:03:22]}
{[%emt 00:03:54]} 22. b5 {[%clk 00:53:02]} {[%emt 00:00:49]} Bc8 {[%clk
01:03:27]} {[%emt 00:00:26]} 23. Ba3 {[%clk 00:53:06]} {[%emt 00:00:25]} c5
{[%clk 01:00:32]} {[%emt 00:03:26]} 24. bxc6 {[%clk 00:53:12]} {[%emt
00:00:24]} Qc7 {[%clk 01:00:31]} {[%emt 00:00:30]} 25. Rb2 {[%clk 00:38:00]}
{[%emt 00:15:42]} g4 {[%clk 01:00:02]} {[%emt 00:00:59]} 26. Nxg4 {[%clk
00:36:50]} {[%emt 00:01:40]} Qxc6 {[%clk 00:58:02]} {[%emt 00:02:30]} 27. Ne3
{[%clk 00:33:29]} {[%emt 00:03:51]} Be6 {[%clk 00:50:41]} {[%emt 00:07:52]} 28.
Nxf5 {[%clk 00:31:30]} {[%emt 00:02:30]} Nxf5 {[%clk 00:50:55]} {[%emt
00:00:14]} 29. Bxf8 {[%clk 00:30:18]} {[%emt 00:01:43]} Rxf8 {[%clk 00:51:19]}
{[%emt 00:00:05]} 30. Ne5 {[%clk 00:28:34]} {[%emt 00:02:14]} Qc7 {[%clk
00:50:29]} {[%emt 00:01:21]} 31. Rc2 {[%clk 00:26:47]} {[%emt 00:02:16]} Rc8
{[%clk 00:48:50]} {[%emt 00:02:09]} 32. Qb1 {[%clk 00:24:56]} {[%emt 00:02:22]}
Nd6 {[%clk 00:43:31]} {[%emt 00:05:49]} 33. Rcc1 {[%clk 00:24:48]} {[%emt
00:00:37]} Qe7 {[%clk 00:38:53]} {[%emt 00:05:07]} 34. Qxb6 {[%clk 00:24:45]}
{[%emt 00:00:34]} Ne4 {[%clk 00:39:02]} {[%emt 00:00:21]} 35. Bxe4 {[%clk
00:23:28]} {[%emt 00:01:47]} dxe4 {[%clk 00:39:24]} {[%emt 00:00:08]} 36. Rxe4
{[%clk 00:23:41]} {[%emt 00:00:17]} Qg5 {[%clk 00:38:28]} {[%emt 00:01:25]} 37.
Qb2 {[%clk 00:22:11]} {[%emt 00:02:02]} h5 {[%clk 00:36:26]} {[%emt 00:02:32]}
38. Rce1 {[%clk 00:18:04]} {[%emt 00:04:37]} Qd8 {[%clk 00:28:52]} {[%emt
00:08:04]} 39. Ng6 {[%clk 00:17:18]} {[%emt 00:01:15]} Qf6 {[%clk 00:28:08]}
{[%emt 00:01:13]} 40. Nf4 {[%clk 00:17:02]} {[%emt 00:00:47]} Bd7 {[%clk
00:21:01]} {[%emt 00:07:38]} 41. Nd5 {[%clk 00:16:59]} {[%emt 00:00:33]} Qg5
{[%clk 00:19:28]} {[%emt 00:02:01]} 42. Ne7+ {[%clk 00:17:12]} {[%emt
00:00:18]} Kh7 {[%clk 00:19:42]} {[%emt 00:00:15]} 43. Nxc8 {[%clk 00:16:27]}
{[%emt 00:01:16]} Bxc8 {[%clk 00:20:10]} {[%emt 00:00:02]} 44. Qb5 {[%clk
00:15:45]} {[%emt 00:01:11]} Qg6 {[%clk 00:19:13]} {[%emt 00:01:26]} 45. R1e3
{[%clk 00:12:29]} {[%emt 00:03:47]} Bh6 {[%clk 00:17:36]} {[%emt 00:02:08]} 46.
Rg3 {[%clk 00:12:36]} {[%emt 00:00:22]} Qxe4 {[%clk 00:17:25]} {[%emt
00:00:41]} 47. Qd3 {[%clk 00:12:59]} {[%emt 00:00:08]} f5 {[%clk 00:14:49]}
{[%emt 00:03:07]} 48. Qxe4 {[%clk 00:12:59]} {[%emt 00:00:30]} fxe4 {[%clk
00:15:17]} {[%emt 00:00:02]} 49. c4 {[%clk 00:12:33]} {[%emt 00:00:55]} Ba6
{[%clk 00:13:42]} {[%emt 00:02:06]} 50. c5 {[%clk 00:12:47]} {[%emt 00:00:15]}
Bb7 {[%clk 00:13:28]} {[%emt 00:00:44]} 51. Rc3 {[%clk 00:11:49]} {[%emt
00:01:28]} Bc6 {[%clk 00:12:56]} {[%emt 00:01:01]} 52. a5 {[%clk 00:11:57]}
{[%emt 00:00:23]} Bg7 {[%clk 00:12:28]} {[%emt 00:00:58]} 53. Rc4 {[%clk
00:12:07]} {[%emt 00:00:20]} Bh6 {[%clk 00:12:20]} {[%emt 00:00:37]} 54. a6
{[%clk 00:10:53]} {[%emt 00:01:45]} e3 {[%clk 00:11:48]} {[%emt 00:01:03]} 55.
fxe3 {[%clk 00:11:01]} {[%emt 00:00:22]} Bxe3+ {[%clk 00:11:54]} {[%emt
00:00:23]} 56. Kf1 {[%clk 00:11:09]} {[%emt 00:00:23]} Bb5 {[%clk 00:10:45]}
{[%emt 00:01:37]} 57. a7 {[%clk 00:11:33]} 0-1